fUSD/lending_fUSD_20240524
["ID","MTS","AMOUNT","RATE_DAILY","PERIOD"]
[327822622,1716510645037,-219.77224,0.00034068,7]
[327822623,1716510645047,-225.263401,0.00034068,7]
[327822624,1716510645056,-225.263401,0.00034068,7]
[327822625,1716510645066,-225.263401,0.00034068,7]
[327822626,1716510645076,-225.263401,0.00034068,7]
[327822627,1716510645086,-225.263401,0.00034068,7]
[327822628,1716510645095,-225.263401,0.00034068,7]
[327822629,1716510645105,-225.263401,0.00034068,7]
[327822630,1716510645115,-225.263401,0.00034068,7]
[327822631,1716510645125,-225.263401,0.00034068,7]
[327822632,1716510645134,-225.263401,0.00034068,7]
[327822633,1716510645144,-225.263401,0.00034068,7]
[327822634,1716510645153,-225.263395,0.00034068,7]
[327822635,1716510645163,-390.885623,0.00034068,7]
[327822636,1716510645173,-390.885623,0.00034068,7]
[327822637,1716510645183,-390.885623,0.00034068,7]
[327822638,1716510645192,-390.885623,0.00034068,7]
[327822639,1716510645203,-390.885623,0.00034068,7]
[327822640,1716510645212,-390.885623,0.00034068,7]
[327822641,1716510645222,-390.885623,0.00034068,7]
[327822642,1716510645232,-390.885623,0.00034068,7]
[327822643,1716510645244,-390.885623,0.00034068,7]
[327822644,1716510645254,-390.885623,0.00034068,7]
[327822645,1716510645265,-390.885623,0.00034068,7]
[327822646,1716510645275,-151.0,0.00034068,7]
[327822647,1716510645284,-151.0,0.00034068,7]
[327822648,1716510645293,-390.885623,0.00034068,7]
[327822649,1716510645302,-390.885623,0.00034068,7]
[327822650,1716510645312,-390.885623,0.00034068,7]
[327822651,1716510645322,-390.885623,0.00034068,7]
[327822652,1716510645332,-390.88563,0.00034068,7]
[327822653,1716510645342,-151.0,0.00034068,7]
[327822654,1716510645352,-260.573372,0.00034068,7]
[327822655,1716510645361,-1837.1210636,0.00034068,2]
[327822656,1716510645370,-8093.52684809,0.00034068,20]
[327822657,1716510645379,-544.58296074,0.00034068,5]
[327822658,1716510645388,-1923.25785445,0.00034068,5]
[327822659,1716510645397,-946.43452539,0.00034068,5]
[327822660,1716510645406,-573.66313016,0.00034068,5]
[327822661,1716510645416,-950.39534213,0.00034068,4]
[327822662,1716510645426,-1074.31072419,0.00034068,7]
[327822663,1716510645435,-529.61607857,0.00034068,5]
[327822664,1716510645445,-50000.0,0.00034068,20]
[327822665,1716510645454,-50000.0,0.00034068,21]
[327822666,1716510645463,-34970.63461934,0.00034068,22]
[327822667,1716510645476,-15029.36538066,0.00034068,22]
[327822668,1716510645486,-50000.0,0.00034068,23]
[327822669,1716510645495,-7565.55799752,0.00034068,5]
[327822670,1716510645504,-677.99603868,0.00034068,10]
[327822671,1716510645513,-598.14709258,0.00034068,6]
[327822672,1716510645524,-511.64669584,0.00034068,7]
[327822673,1716510645533,-831.09443976,0.00034068,10]
[327822674,1716510645542,-1000.0,0.00034068,10]
[327822675,1716510645551,-26311.44798653,0.00034068,5]
[327822676,1716510645560,-500.0,0.00034068,10]
[327822677,1716510645569,-18234.77174163,0.00034068,5]
[327822678,1716510645578,-6836.23982195,0.00034068,5]
[327822679,1716510645587,-167928.68602193,0.00034068,7]
[327822680,1716510645597,-521283.05419504,0.00034068,2]
[327822681,1716510645609,-398.83620363,0.00034068,2]
[327822682,1716510645620,-7017.2,0.00034068,2]
[327822683,1716510645631,-5116.67968029,0.00034068,2]
[327822684,1716510645642,-629.23,0.00034068,2]
[327822685,1716510645653,-1056.70230031,0.00034068,2]
[327822686,1716510645665,-2068.35907027,0.00034068,2]
[327822687,1716510646041,-1052.65065322,0.00032876,2]
[327822688,1716510646051,-872.0,0.00033045,2]
[327822689,1716510646061,-581.95393514,0.00034067,4]
[327822690,1716510646070,-2741.62766506,0.00034068,2]
[327822691,1716510646081,-387.53754655,0.00034068,2]
[327822692,1716510646092,-794.89183922,0.00034068,2]
[327822693,1716510646104,-57705.41585514,0.00034068,2]
[327822694,1716510646120,-1018.3,0.00034068,2]
[327822695,1716510646131,-2580.60211348,0.00034068,2]
[327822696,1716510646143,-489.02686996,0.00034068,2]
[327822697,1716510646154,-792.56179696,0.00034068,2]
[327822698,1716510646166,-660.02,0.00034068,2]
[327822699,1716510646177,-8888.26322677,0.00034068,2]
[327822700,1716510646189,-295.25514135,0.00034068,2]
[327822701,1716510646206,-4788.38967729,0.00034068,2]
[327822702,1716510646217,-510.56952255,0.00034068,2]
[327822703,1716510646230,-20678.38275321,0.00034068,2]
[327822704,1716510646248,-1594.95663513,0.00034068,2]
[327822705,1716510646259,-3650.22890325,0.00034068,2]
[327822706,1716510646270,-1458.83968283,0.00034068,2]
[327822707,1716510646282,-358.2385076,0.00034068,2]
[327822708,1716510646313,-994.43474316,0.00034068,2]
[327822709,1716510646324,-15537.63468,0.00034068,2]
[327822710,1716510646335,-35885.226265,0.00034068,2]
[327822711,1716510646346,-677.99999947,0.00034068,2]
[327822712,1716510646357,-1215.60604231,0.00034068,2]
[327822713,1716510646369,-383.87296915,0.00034068,2]
[327822714,1716510646386,-674.79429573,0.00034068,2]
[327822715,1716510646398,-5710.75474301,0.00034068,2]
[327822716,1716510646409,-3972.0,0.00034068,2]
[327822717,1716510646465,-1227.69,0.00034068,2]
[327822718,1716510824325,1111543.02209715,0.00013,2]
[327822719,1716510824354,3200.0,0.00013,2]
[327822720,1716510824382,5513162.39242393,0.00013,2]
[327822726,1716511772181,156.74,0.00013973,2]
[327822730,1716511833792,-538.0,0.000212,2]
[327822731,1716511833803,-2037.95404079,0.00024,15]
[327822732,1716511833813,-472.45726553,0.00024,2]
[327822733,1716511833823,-433.1400003,0.00024999,2]
[327822734,1716511833834,-155.0,0.00025,2]
[327822735,1716511833844,-5000.0,0.00025,7]
[327822736,1716511833854,-926.99561138,0.00025663,2]
[327822737,1716511833864,-270.2,0.00025664,2]
[327822738,1716511833873,-23445.03544886,0.00026,5]
[327822739,1716511833884,-150.0,0.00026493,2]
[327822740,1716511833894,-805.18519156,0.0002739,2]
[327822741,1716511833903,-158.98,0.00027555,2]
[327822742,1716511833913,-697.6,0.00027576,2]
[327822743,1716511833923,-250.0,0.0002758,2]
[327822744,1716511833933,-273.0056,0.00027899,2]
[327822745,1716511833944,-270.2,0.00027928,2]
[327822746,1716511833954,-594.5000153,0.00028,2]
[327822747,1716511833964,-250.0,0.00028196,2]
[327822748,1716511833973,-7854.69380717,0.00028313,2]
[327822749,1716511833982,-61419.00663964,0.00028314,4]
[327822750,1716511833992,-214.03613135,0.00028738,2]
[327822751,1716511834001,-1482.6862475,0.00029168,2]
[327822752,1716511834010,-302.4,0.00029169,2]
[327822753,1716511834020,-250.0,0.00029382,2]
[327822754,1716511834029,-500.0,0.0003,2]
[327822755,1716511834038,-500.0,0.0003,2]
[327822756,1716511834047,-500.0,0.0003,2]
[327822757,1716511834057,-500.0,0.0003,2]
[327822758,1716511834066,-500.0,0.0003,2]
[327822759,1716511834075,-500.0,0.0003,2]
[327822760,1716511834084,-314.0,0.0003,18]
[327822762,1716511834093,-2343.63542169,0.0003,4]
[327822764,1716511834103,-5388.11827855,0.0003,4]
[327822766,1716511834112,-1011.76,0.0003,2]
[327822769,1716511834121,-307.14,0.0003,2]
[327822771,1716511834131,-19406.05997029,0.0003,4]
[327822774,1716511834139,-23830.32925495,0.0003,4]
[327822777,1716511834148,-270.2,0.00030192,2]
[327822779,1716511834157,-180.0,0.00030268,2]
[327822782,1716511834166,-314.0,0.000305,19]
[327822784,1716511834176,-8129.64727189,0.00030511,2]
[327822786,1716511834186,-8889.25353765,0.00030514,5]
[327822788,1716511834200,-377.14468412,0.00030514,5]
[327822790,1716511834211,-486.93,0.00030514,5]
[327822792,1716511834223,-1875.10744736,0.00030514,5]
[327822795,1716511834235,-10575.56433087,0.00030514,5]
[327822798,1716511834244,-325.80378299,0.0003066,7]
[327822800,1716511834254,-467.657875,0.0003093,2]
[327822802,1716511834263,-314.0,0.00031,19]
[327822803,1716511834273,-697.6,0.00031023,2]
[327822805,1716511834282,-314.0,0.000315,20]
[327822806,1716511834291,-1011.76,0.00031795,2]
[327822807,1716511834301,-314.0,0.00032,20]
[327822808,1716511834310,-333.64612024,0.00032,4]
[327822809,1716511834319,-200.0,0.00032057,2]
[327822810,1716511834329,-500.0,0.00032057,2]
[327822811,1716511834341,-870.2,0.0003221,2]
[327822812,1716511834350,-870.2,0.0003221,2]
[327822813,1716511834359,-870.2,0.0003221,2]
[327822814,1716511834371,-870.2,0.0003221,2]
[327822815,1716511834380,-270.2,0.00032456,2]
[327822816,1716511834390,-314.0,0.000325,21]
[327822817,1716511834399,-302.4,0.00032816,2]
[327822818,1716511834612,-238.43858843,0.00032875,4]
[327822819,1716511834623,-500.0,0.00032876,6]
[327822820,1716511834633,-386.37503556,0.00032877,5]
[327822821,1716511834642,-156.26551611,0.00032877,4]
[327822822,1716511834651,-314.0,0.00033,22]
[327822823,1716511834660,-150.0,0.00033,2]
[327822824,1716511834670,-207.0,0.00033169,2]
[327822825,1716511834679,-865.45,0.00033169,2]
[327822826,1716511834689,-314.0,0.000335,22]
[327822827,1716511834699,-3240.5,0.000335,2]
[327822828,1716511834709,-3240.5,0.000335,2]
[327822829,1716511834718,-3240.5,0.000335,2]
[327822830,1716511834727,-3240.5,0.000335,2]
[327822831,1716511834735,-4241.34,0.000335,2]
[327822832,1716511834744,-3240.5,0.000335,2]
[327822833,1716511834753,-4241.34,0.000335,2]
[327822834,1716511834762,-3240.5,0.000335,2]
[327822835,1716511834771,-4241.34,0.000335,2]
[327822836,1716511834780,-2379.49596889,0.000335,2]
[327822837,1716511834889,-861.00403111,0.000335,2]
[327822838,1716511834899,-792.54075368,0.000335,2]
[327822839,1716511834910,-1713.30000046,0.000335,2]
[327822840,1716511838816,-400.0,0.00024998,2]
[327822841,1716511838827,-72.45726553,0.00024998,2]
[327822842,1716511838837,-1500.95828447,0.000335,2]
[327822843,1716511838849,-234.54096139,0.000335,2]
[327822844,1716511838859,-1706.40413425,0.000335,2]
[327822845,1716511838872,-1534.09586575,0.000335,2]
[327822846,1716511838883,-4241.34,0.000335,2]
[327822847,1716511838892,-2193.73606894,0.000335,2]
[327822848,1716511838904,-2047.60393106,0.000335,2]
[327822849,1716511838914,-1084.27078894,0.000335,2]
[327822850,1716511838925,-813.64995,0.000335,2]
[327822851,1716511838937,-1342.57926106,0.000335,2]
[327822852,1716511838947,-4241.34,0.000335,2]
[327822853,1716511838957,-2227.5941877,0.000335,2]
[327822854,1716511838969,-1012.9058123,0.000335,2]
[327822855,1716511838979,-75.39794512,0.000335,2]
[327822856,1716511838990,-681.01,0.000335,2]
[327822857,1716511839001,-2306.41368267,0.000335,2]
[327822858,1716511839013,-262.65011809,0.000335,2]
[327822859,1716511839024,-313.27,0.000335,2]
[327822860,1716511839038,-602.59825412,0.000335,2]
[327822861,1716511839049,-3240.5,0.000335,2]
[327822862,1716511839059,-4241.34,0.000335,2]
[327822863,1716511839068,-3240.5,0.000335,2]
[327822864,1716511839078,-4241.34,0.000335,2]
[327822865,1716511839087,-3240.5,0.000335,2]
[327822866,1716511839097,-4241.34,0.000335,2]
[327822867,1716511839107,-3240.5,0.000335,2]
[327822868,1716511839116,-632.4262797,0.000335,2]
[327822869,1716511839127,-652.2519,0.000335,2]
[327822870,1716511839138,-1765.0,0.000335,2]
[327822871,1716511839149,-901.19631038,0.000335,2]
[327822872,1716511839161,-290.46550992,0.000335,2]
[327822873,1716511839170,-3240.5,0.000335,2]
[327822874,1716511839180,-3183.77408706,0.000335,2]
[327822877,1716511839191,-1057.56591294,0.000335,2]
[327822878,1716511839203,-757.00259706,0.000335,2]
[327822881,1716511839214,-2483.49740294,0.000335,2]
[327822883,1716511839223,-4241.34,0.000335,2]
[327822884,1716511839233,-3240.5,0.000335,2]
[327822885,1716511839242,-3240.5,0.000335,2]
[327822886,1716511839252,-4241.34,0.000335,2]
[327822887,1716511839262,-4241.34,0.000335,2]
[327822888,1716511839272,-3240.5,0.000335,2]
[327822889,1716511839282,-3240.5,0.000335,2]
[327822890,1716511839293,-4241.34,0.000335,2]
[327822891,1716511839303,-4241.34,0.000335,2]
[327822892,1716511839313,-4241.34,0.000335,2]
[327822893,1716511839323,-4241.34,0.000335,2]
[327822894,1716511839333,-1011.76,0.0003359,2]
[327822895,1716511839343,-670.4,0.00033698,2]
[327822896,1716511839352,-670.4,0.00033698,2]
[327822897,1716511839362,-670.4,0.00033698,2]
[327822898,1716511839372,-670.4,0.00033698,2]
[327822899,1716511839382,-500.0,0.00033698,6]
[327822900,1716511839391,-180.77864081,0.00033727,3]
[327822901,1716511839401,-1000.0,0.00033868,2]
[327822902,1716511839411,-1807.0450637,0.00033894,6]
[327822903,1716511839421,-1399.63611984,0.00033894,6]
[327822904,1716511839430,-1351.24855572,0.00033894,2]
[327822905,1716511839440,-670.4,0.00033899,2]
[327822906,1716511839452,-150.68,0.00033984,2]
[327822907,1716511839462,-150.68,0.00033984,2]
[327822908,1716511839472,-150.68,0.00033984,2]
[327822909,1716511839481,-150.68,0.00033984,2]
[327822910,1716511839491,-150.68,0.00033984,2]
[327822911,1716511839500,-150.68,0.00033984,2]
[327822912,1716511839510,-150.68,0.00033984,2]
[327822913,1716511839520,-150.68,0.00033984,2]
[327822914,1716511839529,-150.68,0.00033984,2]
[327822915,1716511839539,-150.68,0.00033984,2]
[327822916,1716511839549,-150.68,0.00033984,2]
[327822917,1716511839559,-150.68,0.00033984,2]
[327822918,1716511839568,-150.68,0.00033984,2]
[327822919,1716511839578,-150.68,0.00033984,2]
[327822920,1716511839587,-150.68,0.00033984,2]
[327822921,1716511839597,-150.68,0.00033984,2]
[327822922,1716511839606,-132.94353802,0.00033984,2]
[327822923,1716511839623,-17.73646198,0.00033984,2]
[327822924,1716511839633,-150.68,0.00033984,2]
[327822925,1716511839642,-150.68,0.00033984,2]
[327822926,1716511839652,-150.68,0.00033984,2]
[327822927,1716511839662,-150.68,0.00033984,2]
[327822928,1716511839672,-150.68,0.00033984,2]
[327822929,1716511839682,-150.68,0.00033984,2]
[327822930,1716511839693,-150.68,0.00033984,2]
[327822931,1716511839704,-150.68,0.00033984,2]
[327822932,1716511839713,-150.68,0.00033984,2]
[327822933,1716511839723,-150.68,0.0003399,2]
[327822934,1716511839733,-500.0,0.00033993,6]
[327822935,1716511839743,-500.0,0.00033993,6]
[327822936,1716511839752,-500.0,0.00033993,6]
[327822937,1716511839762,-39.6968488,0.00033993,6]
[327822938,1716511839774,-460.3031512,0.00033993,6]
[327822939,1716511839783,-4438.66828203,0.00033993,15]
[327822940,1716511839798,-11144.41321854,0.00033993,15]
[327822941,1716511839810,-8766.76781148,0.00033993,15]
[327822942,1716511839821,-2220.0,0.00033993,15]
[327822943,1716511839833,-13900.2,0.00033993,15]
[327822944,1716511840923,-1247.36179,0.00033993,15]
[327822968,1716511843663,-186.71608802,0.00033894,2]
[327822970,1716511843674,-6100.33421798,0.00033993,15]
[327822972,1716511843686,-1209.47228667,0.00033993,15]
[327822974,1716511843700,-1032.58964787,0.00033993,15]
[327822976,1716511843712,-306.99,0.00033993,15]
[327822980,1716511843737,-500.0,0.00033993,15]
[327822988,1716511843809,-625.97369349,0.00033993,15]
[327822991,1716511843821,-5009.28806309,0.00033993,15]
[327822992,1716511843833,-2768.65702154,0.00033993,15]
[327822993,1716511844015,-403.22850324,0.00033993,15]
[327822994,1716511844027,-3164.18316091,0.00033993,15]
[327822995,1716511844038,-2048.31541309,0.00033993,15]
[327822996,1716511844050,-3799.999993,0.00033993,15]
[327822997,1716511844062,-1367.25011,0.00033993,15]
[327822998,1716511844073,-6653.29905034,0.00033993,15]
[327823037,1716511844471,-5167.04200273,0.00033993,15]
[327823039,1716511844481,-162319.81852588,0.00033994,2]
[327823041,1716511844491,-1795.15131695,0.00033994,2]
[327823043,1716511844501,-5059.05680964,0.00033994,2]
[327823046,1716511844511,-11576.55338661,0.00033994,2]
[327823048,1716511844521,-13000.0,0.00033994,2]
[327823049,1716511844530,-1009.85394508,0.00033994,2]
[327823051,1716511844540,-1452.89,0.00033994,9]
[327823053,1716511844550,-217886.47584041,0.00033994,2]
[327823055,1716511844560,-19041.51602659,0.00033994,2]
[327823057,1716511844570,-154.999999,0.00033994,4]
[327823060,1716511844580,-90024.56390473,0.00033994,2]
[327823062,1716511844592,-3042.05091738,0.00033994,2]
[327823064,1716511844603,-506.98008534,0.00033994,2]
[327823066,1716511844615,-408.23335935,0.00033994,2]
[327823068,1716511844631,-1738.70234207,0.00033994,2]
[327823072,1716511844643,-1160.83500045,0.00033994,2]
[327823075,1716511844655,-963.73178324,0.00033994,2]
[327823078,1716511844671,-131102.06190189,0.00033994,2]
[327823080,1716511844681,-3049.0,0.00033994,10]
[327823082,1716511844690,-2151.68634141,0.00033994,10]
[327823085,1716511844704,-150.0,0.00033994,2]
[327823086,1716511844713,-2733.93853413,0.00033994,10]
[327823089,1716511844723,-9314.16225768,0.00033994,2]
[327823091,1716511844733,-14871.00306623,0.00033994,2]
[327823092,1716511844742,-21468.53061364,0.00033994,2]
[327823095,1716511844752,-1773.85815654,0.00033994,2]
[327823096,1716511844762,-535.13895498,0.00033994,2]
[327823099,1716511844772,-4889.84916258,0.00033994,2]
[327823100,1716511844781,-595.45991517,0.00033994,2]
[327823102,1716511844791,-9539.40162071,0.00033994,2]
[327823104,1716511844801,-9292.92277915,0.00033994,2]
[327823106,1716511844810,-67849.23070645,0.00033994,2]
[327823109,1716511844819,-20781.28482724,0.00033994,2]
[327823111,1716511844831,-51147.69899485,0.00033994,2]
[327823259,1716511846348,-335.25000385,0.00033312,2]
[327823261,1716511846360,-910.23354311,0.00033312,2]
[327823263,1716511846370,-581.95393514,0.00033992,4]
[327823265,1716511846379,-994.68012869,0.00033994,2]
[327823267,1716511846390,-352.7727058,0.00033994,2]
[327823268,1716511846401,-307.59549392,0.00033994,2]
[327823269,1716511846417,-295.12565298,0.00033994,2]
[327823270,1716511846428,-491.92205385,0.00033994,2]
[327823271,1716511846484,-94512.24490517,0.00033994,2]
[327823272,1716511846493,-119142.05678872,0.00033994,2]
[327823273,1716511846502,-1210.0,0.00033994,2]
[327823274,1716511846512,-340.01239584,0.00033994,2]
[327823275,1716511846521,-4698.19450407,0.00033994,2]
[327823276,1716511846530,-222.61266315,0.00033994,2]
[327823277,1716511846539,-1484.2032715,0.00033994,2]
[327823278,1716511846548,-7198.06951529,0.00033994,2]
[327823279,1716511846557,-1005.37962135,0.00033994,2]
[327823280,1716511846566,-10439.72251921,0.00033994,2]
[327823281,1716511846575,-5060.63376701,0.00033994,2]
[327823283,1716511846584,-2667.86972469,0.00033994,2]
[327823285,1716511846593,-2395.21974327,0.00033994,2]
[327823286,1716511846602,-5472.92032607,0.00033994,2]
[327823287,1716511846611,-2613.19940684,0.00033994,2]
[327823288,1716511846623,-134013.81099016,0.00033994,2]
[327823289,1716511846633,-3169.52520224,0.00033994,2]
[327823290,1716511846642,-160.11893796,0.00033994,2]
[327823291,1716511846651,-22247.25302564,0.00033994,2]
[327823292,1716511846661,-12892.6971042,0.00033994,2]
[327823293,1716511846673,-1138.59999553,0.00033994,2]
[327823294,1716511847179,-644.70431179,0.00033992,4]
[327823295,1716511847191,-697.18595206,0.00033992,4]
[327823296,1716511847201,-333.64612024,0.00033992,4]
[327823297,1716511847212,-732.26527461,0.00033994,2]
[327823298,1716511847222,-1043.18342335,0.00033994,2]
[327823299,1716511847230,-5825.79513129,0.00033994,2]
[327823300,1716511847239,-176.43102286,0.00033994,2]
[327823301,1716511847248,-849.23057647,0.00033994,2]
[327823302,1716511847258,-1020.4503506,0.00033994,2]
[327823303,1716511847268,-186.40278723,0.00033994,2]
[327823304,1716511847277,-3007.06999884,0.00033994,2]
[327823305,1716511847319,-6005.11983732,0.00033994,2]
[327823306,1716511847328,-1279.55680204,0.00033994,2]
[327823307,1716511847337,-4824.08027388,0.00033994,2]
[327823308,1716511847346,-481.02810295,0.00033994,2]
[327823309,1716511847355,-12528.50781544,0.00033994,2]
[327823310,1716511847365,-1875.82946428,0.00033994,2]
[327823311,1716511847376,-5452.68930698,0.00033994,2]
[327823312,1716511847386,-643.0,0.00033994,2]
[327823313,1716511847394,-947.55533557,0.00033994,2]
[327823314,1716511847403,-8084.07749887,0.00033994,2]
[327823315,1716511847413,-1150.03625519,0.00033994,2]
[327823316,1716511847424,-559.6778513,0.00033994,2]
[327823317,1716511847433,-1794.28071093,0.00033994,2]
[327823318,1716511847443,-9857.39409403,0.00033994,2]
[327823319,1716511847455,-1938.11087065,0.00033994,2]
[327823320,1716511847468,-387.7,0.00033994,2]
[327823321,1716511847479,-285.86354147,0.00033994,2]
[327823322,1716511847491,-387.7,0.00033994,2]
[327823324,1716512341796,156.37,0.00013973,2]
[327823325,1716512788489,152.02,0.00013973,2]
[327823358,1716513032707,-1511.22977957,0.00017259,2]
[327823359,1716513032717,-926.99561138,0.00025999,2]
[327823360,1716513032729,-1931.97880671,0.00026,5]
[327823361,1716513032741,-1700.0,0.00026,5]
[327823362,1716513032752,-500.77266238,0.00026,5]
[327823363,1716513032763,-10007.15641502,0.00026,5]
[327823364,1716513032774,-347.96815075,0.00026,5]
[327823365,1716513032802,-5991.6322592,0.00026,5]
[327823366,1716513032813,-2965.5271548,0.00026,5]
[327823367,1716513032823,-5000.0,0.00027389,7]
[327823368,1716513032833,-805.18519156,0.0002739,2]
[327823369,1716513032842,-289.0,0.000284,5]
[327823370,1716513032852,-4849.30047064,0.00028999,2]
[327823371,1716513032864,-3005.39333653,0.00028999,2]
[327823372,1716513032873,-1039.32967516,0.00029,2]
[327823376,1716513038576,-443.35657234,0.00029,2]
[327823377,1716513038586,-152.02,0.00029349,2]
[327823378,1716513038595,-216.16,0.00029596,2]
[327823379,1716513038604,-189.0,0.0003,18]
[327823380,1716513038613,-500.0,0.0003,2]
[327823381,1716513038622,-500.0,0.0003,2]
[327823382,1716513038631,-500.0,0.0003,2]
[327823383,1716513038640,-500.0,0.0003,2]
[327823384,1716513038649,-500.0,0.0003,2]
[327823385,1716513038659,-500.0,0.0003,2]
[327823386,1716513038668,-1007.82,0.0003,2]
[327823387,1716513038677,-189.0,0.000305,19]
[327823388,1716513038687,-189.0,0.00031,19]
[327823389,1716513038696,-23830.32925495,0.00031392,4]
[327823390,1716513038706,-19406.05997029,0.00031393,4]
[327823391,1716513038715,-5690.75309032,0.00031394,2]
[327823392,1716513038724,-1007.82,0.00031395,2]
[327823393,1716513038736,-250.0,0.000314,2]
[327823394,1716513038745,-158.98,0.00031445,120]
[327823395,1716513038754,-250.0,0.00031466,2]
[327823396,1716513038763,-189.0,0.000315,20]
[327823401,1716513038910,-152.19,0.00031599,30]
[327823402,1716513039004,-250.0,0.00031623,2]
[327823403,1716513039015,-1000.0,0.00031748,2]
[327823404,1716513039029,-216.16,0.0003186,2]
[327823405,1716513039038,-189.0,0.00032,20]
[327823406,1716513039048,-333.64612024,0.00032499,4]
[327823407,1716513039059,-189.0,0.000325,21]
[327823408,1716513039069,-152.0,0.00032782,3]
[327823409,1716513039078,-1007.82,0.0003279,2]
[327823410,1716513039088,-189.0,0.00033,22]
[327823411,1716513039099,-200.0,0.00033205,20]
[327823412,1716513039110,-500.0,0.00033205,10]
[327823413,1716513039121,-403.53897908,0.000334,2]
[327823414,1716513039130,-1879.4712,0.000334,2]
[327823415,1716513039140,-370.95160554,0.000334,2]
[327823416,1716513039150,-207.0,0.000335,2]
[327823417,1716513039159,-3597.68,0.000335,2]
[327823418,1716513039170,-3597.68,0.000335,2]
[327823419,1716513039180,-3597.68,0.000335,2]
[327823420,1716513039190,-3597.68,0.000335,2]
[327823421,1716513039200,-3597.68,0.000335,2]
[327823422,1716513039210,-2592.72,0.000335,2]
[327823423,1716513039219,-3597.68,0.000335,2]
[327823424,1716513039231,-2592.72,0.000335,2]
[327823425,1716513039240,-3597.68,0.000335,2]
[327823426,1716513039250,-2592.72,0.000335,2]
[327823427,1716513039259,-2592.72,0.000335,2]
[327823428,1716513039270,-3597.68,0.000335,2]
[327823429,1716513039280,-3597.68,0.000335,2]
[327823430,1716513039290,-2592.72,0.000335,2]
[327823431,1716513039299,-3597.68,0.000335,2]
[327823432,1716513039309,-2592.72,0.000335,2]
[327823433,1716513039318,-3597.68,0.000335,2]
[327823434,1716513039328,-2592.72,0.000335,2]
[327823435,1716513039337,-3597.68,0.000335,2]
[327823436,1716513039348,-2592.72,0.000335,2]
[327823437,1716513039357,-3597.68,0.000335,2]
[327823438,1716513039367,-2592.72,0.000335,2]
[327823439,1716513039376,-3597.68,0.000335,2]
[327823440,1716513039386,-2592.72,0.000335,2]
[327823441,1716513039395,-3597.68,0.000335,2]
[327823442,1716513039405,-2592.72,0.000335,2]
[327823443,1716513039415,-3597.68,0.000335,2]
[327823444,1716513039424,-2592.72,0.000335,2]
[327823445,1716513039433,-3597.68,0.000335,2]
[327823446,1716513039443,-2592.72,0.000335,2]
[327823447,1716513039452,-3597.68,0.000335,2]
[327823448,1716513039462,-2592.72,0.000335,2]
[327823449,1716513039471,-3597.68,0.000335,2]
[327823450,1716513039482,-2592.72,0.000335,2]
[327823451,1716513039491,-3597.68,0.000335,2]
[327823452,1716513039500,-2592.72,0.000335,2]
[327823453,1716513039511,-2592.72,0.000335,2]
[327823454,1716513039520,-2592.72,0.000335,2]
[327823455,1716513039529,-2592.72,0.000335,2]
[327823456,1716513039539,-2592.72,0.000335,2]
[327823457,1716513039548,-189.0,0.000335,22]
[327823458,1716513039558,-403.53897899,0.00033622,2]
[327823459,1716513039567,-370.95160554,0.00033622,2]
[327823460,1716513039576,-552.80069,0.0003365,2]
[327823461,1716513039586,-530.74,0.00033698,2]
[327823462,1716513039596,-172.19785041,0.00033727,3]
[327823463,1716513039605,-403.53897899,0.00033844,2]
[327823464,1716513039615,-370.95160554,0.00033844,2]
[327823465,1716513039625,-1000.0,0.00033894,2]
[327823466,1716513039634,-322.61257427,0.00033938,2]
[327823467,1716513039644,-1656.45797504,0.00033939,6]
[327823468,1716513039654,-900.83237048,0.00033939,2]
[327823469,1716513039664,-2637.6180602,0.00033939,2]